bitfinex-derivatives/quotes_ETHF0:USTF0_20250908
["timestamp","ask_amount","ask_price","bid_price","bid_amount"]
[1757294372713,0.7021,4298.8,4298.7,0.80384702]
[1757294373018,0.7021,4298.8,4298.7,1.04084702]
[1757294375215,0.816,4298.5,4298.4,0.80384702]
[1757294375411,0.816,4298.5,4298.4,1.04084702]
[1757294378129,0.816,4298.5,4298.4,1.23864702]
[1757294378837,0.816,4298.5,4298.4,1.00164702]
[1757294379036,0.816,4298.5,4298.4,1.23864702]
[1757294379338,0.816,4298.5,4298.4,0.237]
[1757294380431,0.5204,4298.0,4297.9,0.0698]
[1757294380739,0.816,4298.0,4297.9,0.3068]
[1757294380937,0.816,4298.0,4297.9,0.5046]
[1757294381438,0.816,4298.0,4297.9,0.3068]
[1757294381841,0.816,4298.0,4297.9,0.0698]
[1757294382031,4.816,4298.0,4297.9,0.0698]
[1757294382540,4.816,4298.0,4297.7,3.2078]
[1757294382541,0.697,4297.8,4297.7,3.2078]
[1757294382743,0.5204,4297.5,4297.4,0.237]
[1757294383040,0.816,4297.5,4297.4,0.237]
[1757294384535,0.816,4297.5,4297.4,0.4348]
[1757294385635,0.816,4297.5,4297.4,0.9573]
[1757294385845,0.697,4297.5,4297.4,0.9573]
[1757294387737,0.816,4297.5,4297.4,0.237]
[1757294389341,0.816,4297.5,4297.1,0.3097]
[1757294389542,0.816,4297.5,4296.9,0.0698]
[1757294389543,0.816,4297.0,4296.9,0.0698]
[1757294389938,0.2956,4296.9,4296.1,1.35054702]
[1757294390139,0.697,4296.2,4296.1,1.54834702]
[1757294390337,0.697,4296.2,4296.1,1.76114702]
[1757294392139,0.119,4296.0,4295.9,3.2078]
[1757294392336,0.4014,4295.7,4295.6,0.237]
[1757294392539,0.4014,4295.7,4295.4,3.2078]
[1757294392540,0.119,4295.5,4295.4,3.2078]
[1757294392740,0.5204,4295.5,4295.4,0.1978]
[1757294392937,0.2956,4295.4,4295.1,0.237]
[1757294393141,0.697,4295.2,4295.1,0.4348]
[1757294393341,0.697,4295.2,4295.1,0.1978]
[1757294393646,0.697,4295.2,4295.1,0.5075]
[1757294394144,0.697,4295.2,4295.1,0.1978]
[1757294395444,0.697,4295.2,4294.9,0.80384702]
[1757294395646,0.697,4295.1,4295.0,0.1978]
[1757294395843,0.697,4295.1,4295.0,0.5075]
[1757294396040,0.2354,4295.5,4294.9,0.80384702]
[1757294396041,0.816,4295.0,4294.9,1.00164702]
[1757294396441,0.816,4295.0,4294.9,0.1978]
[1757294398150,0.697,4294.8,4294.7,1.00164702]
[1757294398352,0.697,4294.8,4294.7,1.31134702]
[1757294398953,0.697,4294.8,4294.7,1.52414702]
[1757294400857,0.2956,4295.4,4294.8,0.3097]
[1757294401155,0.4959,4295.1,4295.0,1.21444702]
[1757294401357,0.2003,4295.1,4295.0,1.33074702]
[1757294401557,0.2003,4295.1,4295.0,1.64044702]
[1757294401755,0.4959,4295.1,4295.0,1.64044702]
[1757294402555,0.2003,4295.1,4295.0,1.64044702]
[1757294403355,0.4959,4295.1,4295.0,1.64044702]
[1757294403758,0.697,4295.1,4295.0,0.7203]
[1757294405754,0.1232,4295.0,4294.9,0.80384702]
[1757294405959,0.4151,4294.5,4294.4,0.4336]
[1757294406155,0.8408,4294.5,4294.3,0.0698]
[1757294406351,0.5383,4294.5,4294.0,0.237]
[1757294406552,0.4151,4294.2,4294.1,0.5148]
[1757294406853,0.7176,4294.2,4294.1,1.53364702]
[1757294407053,0.2139,4294.2,4294.1,1.53364702]
[1757294407858,3.2078,4294.6,4294.1,1.21544702]
[1757294408060,0.7176,4294.5,4294.4,0.4116]
[1757294408262,0.7176,4294.5,4294.4,0.7298]
[1757294409260,0.834,4294.5,4294.4,0.7298]
[1757294409660,0.1164,4294.5,4294.4,2.33749404]
[1757294409859,0.1164,4294.5,4294.4,4.97844702]
[1757294419170,0.1164,4294.5,4294.4,1.77064702]
[1757294419666,0.1164,4294.5,4294.4,4.97844702]
[1757294422869,0.9572,4294.5,4294.1,0.0698]
[1757294423064,0.4151,4294.2,4294.1,0.0698]
[1757294423270,0.1232,4293.0,4292.4,2.08483504]
[1757294423463,0.1232,4293.0,4292.1,2.9188913]
[1757294423464,0.7176,4292.2,4291.4,0.3182]
[1757294423661,0.5383,4291.5,4291.4,0.1966]
[1757294423966,0.3025,4291.2,4290.5,0.4384]
[1757294424161,0.81298176,4291.1,4291.0,0.85]
[1757294424357,3.3243,4291.1,4291.0,0.85]
[1757294424560,3.3243,4291.1,4291.0,1.088]
[1757294429575,4.0419,4291.1,4291.0,0.9678]
[1757294430481,0.3025,4290.7,4290.4,0.238]
[1757294430674,0.5383,4290.5,4290.4,0.4346]
[1757294430874,0.8408,4290.5,4290.4,0.4346]
[1757294431176,0.8408,4290.5,4290.4,17.9346]
[1757294431478,0.3371,4291.0,4290.9,0.1966]
[1757294431679,0.8408,4291.0,4290.9,0.5148]
[1757294431878,0.8408,4291.0,4290.9,0.7298]
[1757294432078,3.3243,4291.1,4291.0,0.1202]
[1757294432267,3.3243,4291.1,4291.0,0.85]
[1757294433081,3.5382,4291.1,4291.0,0.85]
[1757294433977,3.3243,4291.1,4291.0,0.85]
[1757294434768,3.8407,4291.1,4291.0,0.85]
[1757294434973,4.0419,4291.1,4291.0,0.7298]
[1757294435169,4.0501,4291.1,4291.0,0.2091]
[1757294435574,4.0501,4291.1,4290.7,0.3059]
[1757294435879,0.7139,4290.6,4290.5,0.9566]
[1757294436275,0.2057,4290.6,4290.5,1.0814]
[1757294436878,0.5164,4290.6,4290.5,0.9566]
[1757294437079,0.4368,4290.5,4290.4,17.5]
[1757294437282,0.84,4290.5,4290.4,17.738]
[1757294437976,0.84,4290.5,4290.4,17.9471]
[1757294439177,0.84,4290.5,4290.2,0.238]
[1757294439382,0.84,4290.5,4289.7,0.0699]
[1757294439383,0.1261,4290.0,4289.7,0.0699]
[1757294439578,0.7139,4289.8,4289.7,0.279]
[1757294440884,0.7139,4289.8,4289.7,0.7885]
[1757294441177,0.2057,4289.8,4289.7,0.7885]
[1757294441383,0.5164,4289.8,4289.7,0.7885]
[1757294441986,0.1261,4290.5,4289.7,0.4826]
[1757294442177,0.3107,4290.4,4289.8,0.3059]
[1757294442375,0.2057,4289.9,4289.8,0.7186]
[1757294442576,0.7139,4289.9,4289.8,0.7186]
[1757294444482,0.7139,4289.9,4289.6,0.238]
[1757294445085,0.5164,4289.9,4289.8,0.7186]
[1757294445387,0.7139,4289.9,4289.8,0.7186]
[1757294447782,0.2057,4289.9,4289.8,0.7186]
[1757294447982,3.2078,4290.1,4290.0,0.1248]
[1757294448185,3.2078,4290.1,4290.0,0.8434]
[1757294448489,3.4135,4290.1,4290.0,0.8434]
[1757294449092,3.7242,4290.1,4290.0,0.8434]
[1757294449289,0.3107,4290.4,4290.0,0.5375]
[1757294449494,0.3107,4290.7,4290.4,0.3059]
[1757294449685,0.7139,4290.7,4290.6,0.7186]
[1757294450402,0.8304,4290.7,4290.6,0.7186]
[1757294450693,0.1165,4290.7,4290.6,0.7186]
[1757294450892,0.1165,4290.7,4290.6,0.9556]
[1757294451090,0.3222,4290.7,4290.6,0.9556]
[1757294451887,0.1165,4290.7,4290.6,0.9556]
[1757294452288,0.3222,4290.7,4290.6,0.9556]
[1757294453895,0.6329,4290.7,4290.6,0.9556]
[1757294456188,0.1261,4290.5,4289.9,3.5137]
[1757294456397,0.7139,4290.0,4289.9,0.7186]
[1757294456596,0.7139,4290.0,4289.9,0.9556]
[1757294459690,0.7139,4290.4,4290.3,0.4127]
[1757294459887,0.7139,4290.4,4290.3,0.7186]
[1757294460089,0.7139,4290.4,4290.3,0.4127]
[1757294460287,0.7139,4290.4,4290.3,0.2091]
[1757294460490,0.7139,4290.4,4290.3,0.7186]
[1757294461096,0.2057,4290.4,4290.3,0.9556]
[1757294461498,0.5164,4290.4,4290.3,0.9556]
[1757294462198,3.5185,4290.8,4290.5,0.1248]
[1757294462493,3.7242,4290.8,4290.7,0.7186]
[1757294462694,3.9217,4290.8,4290.7,0.6021]
[1757294462893,3.2078,4290.8,4290.7,0.8391]
[1757294463197,0.5164,4291.2,4291.1,0.4127]
[1757294463497,0.5164,4291.2,4291.1,0.9556]
[1757294464101,0.7139,4291.2,4291.1,18.4556]
[1757294467399,3.331,4291.5,4291.1,18.4556]
[1757294467602,3.8328,4291.5,4291.4,0.3957]
[1757294467904,4.0413,4291.5,4291.4,0.9428]
[1757294468503,0.2922,4291.4,4290.3,0.237]
[1757294468805,7.56402,4291.5,4290.3,0.237]
[1757294468806,0.7103,4290.4,4290.3,0.237]
[1757294469303,0.4086,4290.7,4290.4,0.3101]
[1757294469601,0.1164,4290.7,4290.6,0.7058]
[1757294469903,0.1164,4290.7,4290.6,0.9428]
[1757294470197,0.1274,4291.0,4290.6,0.6327]
[1757294470403,0.7103,4290.8,4290.7,0.3957]
[1757294471801,0.2096,4290.8,4290.7,0.7058]
[1757294472004,3.6164,4291.1,4290.8,0.3101]
[1757294472309,3.826,4291.1,4291.0,0.7058]
[1757294472604,3.9181,4291.1,4291.0,0.9428]
[1757294472794,3.2078,4291.1,4291.0,1.06]
[1757294472998,0.1232,4291.5,4291.0,0.7499]
[1757294473199,0.2096,4291.2,4291.0,0.3542]
[1757294473399,0.5018,4291.2,4291.1,0.7058]
[1757294473803,0.7103,4291.2,4291.1,0.7058]
[1757294475008,0.5018,4291.2,4291.1,0.7058]
[1757294476600,0.2096,4291.2,4291.1,0.7058]
[1757294476811,0.5018,4291.2,4291.1,0.7058]
[1757294477013,0.1164,4291.4,4291.2,0.3101]
[1757294477214,0.5018,4291.4,4291.3,0.3957]
[1757294477505,3.2078,4291.9,4291.3,0.7058]
[1757294477705,3.7096,4291.9,4291.8,0.3957]
[1757294477911,3.9181,4291.9,4291.8,0.7058]
[1757294478908,3.9181,4291.9,4291.8,0.3957]
[1757294482819,3.9181,4291.9,4291.8,0.1985]
[1757294483717,3.9181,4291.9,4291.8,0.7058]
[1757294484115,3.2078,4291.9,4291.8,0.7058]
[1757294484419,0.6182,4292.2,4292.1,0.7058]
[1757294484621,0.5018,4292.2,4292.1,0.7058]
[1757294484813,0.7103,4292.2,4292.1,0.7058]
[1757294485214,0.7103,4292.2,4292.1,0.9428]
[1757294486523,0.7103,4292.2,4292.1,2.14458679]
[1757294488017,0.5018,4292.2,4292.1,2.14458679]
[1757294488219,3.5,4292.4,4292.3,0.7058]
[1757294488726,3.7096,4292.4,4292.3,0.7058]
[1757294488914,3.2078,4292.4,4292.1,1.43878679]
[1757294489114,0.7103,4292.2,4292.1,1.43878679]
[1757294489626,0.7103,4292.2,4292.1,1.63728679]
[1757294490214,0.7103,4292.2,4292.1,0.237]
[1757294490419,0.7103,4291.8,4291.7,0.0699]
[1757294490622,3.9181,4291.8,4291.7,0.0699]
[1757294490922,3.9181,4291.8,4291.6,0.237]
[1757294491721,3.6259,4291.8,4291.5,0.237]
[1757294491922,0.7103,4291.6,4291.5,0.237]
[1757294492123,0.7103,4291.1,4291.0,1.01595219]
[1757294492322,0.7103,4291.1,4291.0,0.237]
[1757294492517,0.7103,4291.1,4291.0,0.42773071]
[1757294494724,0.7103,4291.1,4291.0,0.237]
[1757294495220,0.4348,4291.0,4290.9,33.74908641]
[1757294495420,0.8476,4291.0,4290.9,0.42208641]
[1757294495619,0.8476,4291.0,4290.9,0.237]
[1757294495820,0.8476,4291.0,4290.9,0.42619944]
[1757294497023,0.8476,4291.0,4290.9,0.18919944]
[1757294497223,5.08065,4291.0,4290.7,0.0699]
[1757294497417,0.8476,4291.0,4290.7,0.0699]
[1757294498127,0.8476,4291.0,4290.9,0.212]
[1757294498726,0.8476,4291.0,4290.7,0.2571364]
[1757294499021,0.8476,4291.0,4290.8,0.212]
[1757294499022,0.7301,4290.9,4290.8,0.212]
[1757294499526,0.7301,4290.9,4290.8,0.7124]
[1757294500228,0.7301,4290.9,4290.6,0.237]
[1757294500432,0.4128,4290.9,4290.0,3.23771624]
[1757294500729,4.0554,4290.5,4290.1,0.237]
[1757294500935,0.8476,4290.0,4289.9,3.4198]
[1757294501227,0.8476,4290.0,4289.9,3.84269106]
[1757294502332,0.8476,4290.0,4289.9,4.04229106]
[1757294502524,0.8476,4290.0,4289.9,4.34309106]
[1757294504730,0.8476,4290.0,4289.9,3.80529106]
[1757294505026,4.0554,4290.0,4289.6,0.0699]
[1757294505528,0.7301,4289.7,4289.6,0.0699]
[1757294505925,0.7301,4288.9,4288.8,0.19094658]
[1757294506235,0.7301,4288.0,4287.9,0.7124]
[1757294506423,0.7301,4288.0,4287.9,0.9494]
[1757294507028,0.7301,4288.0,4287.9,1.1327162]
[1757294509524,0.5251,4288.0,4287.9,1.1327162]
[1757294511330,0.7301,4288.0,4287.9,1.1327162]
[1757294512032,0.8476,4288.0,4287.9,1.1327162]
[1757294512224,0.8476,4288.0,4287.9,0.8319162]
[1757294512832,0.8476,4288.0,4287.9,0.6323162]
[1757294513339,0.8476,4288.0,4287.9,0.449]
[1757294513635,0.8476,4288.0,4287.9,0.212]
[1757294513831,0.5303,4288.0,4287.8,0.42497765]
[1757294514038,0.7301,4287.9,4287.8,0.237]
[1757294514235,0.7301,4287.9,4287.7,0.3069]
[1757294514430,0.7301,4287.9,4287.8,1.02002768]
[1757294515533,0.7301,4287.9,4287.8,0.80802768]
[1757294516141,0.7301,4287.9,4287.7,0.25819575]
[1757294516332,0.7301,4287.9,4287.8,0.80802768]
[1757294516827,0.7301,4287.9,4287.8,1.02002768]
[1757294518040,0.7301,4287.9,4287.8,1.52042768]
[1757294518633,0.5251,4287.9,4287.8,1.52042768]
[1757294518939,0.1166,4288.1,4288.0,0.7124]
[1757294519140,0.5251,4288.1,4288.0,0.7124]
[1757294519339,0.7301,4288.1,4288.0,0.7124]
[1757294519735,0.1175,4288.0,4287.8,0.80802768]
[1757294519943,0.7301,4287.9,4287.8,1.02002768]
[1757294520641,0.7301,4287.9,4287.7,0.0699]
[1757294520841,3.9379,4287.8,4287.7,0.25341927]
[1757294521331,3.6206,4287.8,4287.7,0.212]
[1757294521938,3.9379,4287.8,4287.7,0.212]
[1757294522732,3.9379,4287.8,4287.3,0.5378]
[1757294522733,3.2078,4287.8,4287.3,0.5378]
[1757294522934,0.7301,4287.4,4287.3,0.7498]
[1757294523133,0.7301,4287.4,4287.3,0.449]
[1757294524439,0.7301,4286.7,4286.6,0.7124]
[1757294525440,0.7301,4286.7,4286.6,0.4116]
[1757294525643,0.7301,4286.7,4286.6,0.40129968]
[1757294526032,0.7301,4286.7,4286.6,0.90839968]
[1757294526239,0.7301,4286.7,4286.6,1.20765458]
[1757294526430,0.7301,4286.7,4286.6,0.89995458]
[1757294526632,0.7301,4286.7,4286.6,0.70055458]
[1757294527040,0.7301,4286.7,4286.6,0.48855458]
[1757294527236,0.6498,4286.7,4285.9,0.3077]
[1757294527436,0.7138,4286.1,4286.0,1.0059729]
[1757294527644,0.2948,4286.4,4286.0,0.8169729]
[1757294527841,4.0404,4286.5,4286.4,0.399]
[1757294528043,4.0404,4286.5,4286.4,0.7067]
[1757294528431,4.0404,4286.5,4286.4,0.399]
[1757294528639,4.0404,4286.5,4286.4,0.1996]
[1757294528848,4.0404,4286.5,4286.1,0.3077]
[1757294529141,4.0404,4286.5,4285.9,0.18527601]
[1757294529336,0.8326,4286.0,4285.9,0.9437]
[1757294529543,0.7138,4286.0,4285.9,0.9437]
[1757294529845,0.7138,4286.0,4285.9,0.7067]
[1757294530143,0.7138,4286.0,4285.9,0.9437]
[1757294532541,3.533,4286.5,4286.4,0.1996]
[1757294532742,4.0404,4286.5,4286.4,0.1996]
[1757294533545,4.0404,4286.5,4286.4,0.7067]
[1757294533946,4.0404,4286.5,4286.4,0.1996]
[1757294534748,3.8278,4286.5,4286.4,0.7067]
[1757294534944,3.709,4286.5,4286.4,0.7067]
[1757294535156,0.5012,4286.5,4286.4,0.7067]
[1757294535846,0.8326,4286.5,4286.4,0.399]
[1757294536256,0.8326,4286.5,4286.4,0.7067]
[1757294536843,0.7138,4286.5,4286.4,0.7067]
[1757294537040,3.7443,4287.0,4286.9,0.1996]
[1757294537236,3.7443,4287.0,4286.6,0.3077]
[1757294537642,0.2064,4286.4,4286.3,0.9437]
[1757294537843,0.5012,4286.4,4286.3,0.9437]
[1757294538952,0.5012,4286.4,4286.3,0.6807]
[1757294539252,0.5012,4286.4,4286.3,0.97140588]
[1757294539855,0.7138,4286.4,4286.3,0.92670588]
[1757294540456,3.3253,4287.0,4286.3,0.92670588]
[1757294540746,0.7138,4286.9,4286.8,0.1996]
[1757294540950,0.7138,4286.9,4286.8,0.29070588]
[1757294541250,0.7138,4286.9,4286.8,0.49030588]
[1757294541454,0.7138,4286.9,4286.8,0.29070588]
[1757294543353,0.7138,4286.9,4286.8,0.49030588]
[1757294544357,0.8304,4286.9,4286.8,1.29864302]
[1757294546458,0.8304,4286.9,4286.8,1.78804302]
[1757294547360,0.1166,4286.9,4286.8,1.78804302]
[1757294548156,0.4114,4286.9,4286.8,1.78804302]
[1757294548352,0.6178,4286.9,4286.8,1.78804302]
[1757294549948,0.6178,4286.9,4286.8,2.20794302]
[1757294550250,0.6178,4286.9,4286.8,1.78804302]
[1757294550455,0.6178,4286.9,4286.8,2.20794302]
[1757294550856,0.6178,4286.9,4286.8,1.78804302]
[1757294552352,0.8304,4286.9,4286.8,0.29070588]
[1757294553459,0.8304,4286.9,4286.7,0.80833714]
[1757294553460,0.2948,4286.8,4286.7,0.80833714]
[1757294553655,0.7138,4286.8,4286.7,0.80833714]
[1757294556464,0.8385,4286.5,4286.4,1.45944773]
[1757294556664,0.8385,4286.5,4286.4,1.66344773]
[1757294558762,0.9551,4286.5,4286.4,1.66344773]
[1757294559367,0.6321,4286.5,4286.4,1.95394773]
[1757294559664,0.1166,4286.5,4286.4,1.95394773]
[1757294559865,0.1166,4286.5,4286.4,5.16174773]
[1757294560160,0.3096,4287.2,4287.1,0.4078]
[1757294560365,0.3096,4287.2,4287.1,1.60034773]
[1757294560662,0.7123,4287.2,4287.1,0.4078]
[1757294561568,0.3096,4287.2,4287.1,0.5817]
[1757294561763,0.3096,4287.4,4287.3,0.4078]
[1757294561961,0.3096,4287.4,4287.3,0.5817]
[1757294562570,0.5155,4287.4,4287.3,0.5817]
[1757294563072,0.5155,4287.4,4287.3,0.4078]
[1757294563666,0.5155,4287.4,4287.3,1.42644773]
[1757294564178,0.3096,4287.4,4287.3,1.60034773]
[1757294564475,0.5155,4287.4,4287.3,1.60034773]
[1757294565674,0.3096,4287.4,4287.3,1.60034773]
[1757294565976,0.1164,4287.8,4287.7,0.5817]
[1757294566181,3.3266,4288.0,4287.7,1.66344773]
[1757294566373,0.3096,4287.9,4287.8,0.5817]
[1757294566773,0.5155,4287.9,4287.8,0.5817]
[1757294566972,0.5155,4287.9,4287.8,0.4078]
[1757294568280,0.5155,4287.9,4287.8,0.5817]
[1757294568578,0.7123,4287.9,4287.8,0.4078]
[1757294569873,0.7123,4287.9,4287.8,0.2038]
[1757294570473,0.7123,4287.9,4287.8,0.237]
[1757294571979,0.7123,4287.9,4287.8,0.6448]
[1757294572281,0.5155,4287.9,4287.8,0.8187]
[1757294572476,0.5155,4287.9,4287.8,0.6448]
[1757294572779,0.7123,4287.9,4287.8,0.6448]
[1757294573478,0.5155,4287.9,4287.8,0.8187]
[1757294573984,0.3096,4287.9,4287.8,0.8187]
[1757294574779,0.426,4288.2,4288.1,0.5817]
[1757294574976,0.3096,4288.2,4288.1,1.60034773]
[1757294575577,0.5155,4288.2,4288.1,1.60034773]
[1757294577279,0.3096,4288.4,4288.3,0.4078]
[1757294577479,0.3096,4288.4,4288.3,0.8187]
[1757294577884,0.7123,4288.4,4288.3,0.237]
[1757294578682,0.8385,4288.0,4287.9,1.01864773]
[1757294578885,0.8385,4288.0,4287.9,1.45944773]
[1757294580287,0.1262,4288.5,4288.3,0.4078]
[1757294580288,0.3096,4288.4,4288.3,0.4078]
[1757294580489,0.3096,4288.4,4288.3,1.60034773]
[1757294580783,0.6417,4288.5,4288.4,0.5817]
[1757294581091,0.6417,4288.5,4288.4,0.8187]
[1757294581287,0.1164,4288.7,4288.6,0.5817]
[1757294581500,0.4358,4289.0,4288.6,0.4078]
[1757294581680,0.3321,4289.5,4289.4,0.4078]
[1757294581994,0.5289,4289.5,4289.4,1.45944773]
[1757294582191,0.8385,4289.5,4289.4,1.45944773]
[1757294585489,5.85714773,4289.5,4289.2,0.0699]
[1757294585683,0.8385,4289.5,4289.2,0.0699]
[1757294587295,0.8385,4289.5,4289.4,0.2133]
[1757294587693,0.8385,4289.5,4289.4,0.4278]
[1757294588290,0.8385,4289.5,4289.4,0.2133]
[1757294588698,0.8385,4289.5,4289.4,0.4278]
[1757294590988,0.8385,4289.5,4289.4,0.2133]
[1757294592691,0.8385,4289.5,4289.4,1.01864773]
[1757294592892,0.8385,4289.5,4289.4,1.23194773]
[1757294594592,0.8385,4289.5,4289.4,1.01864773]
[1757294594788,0.8385,4289.5,4289.3,0.237]
[1757294596695,0.6417,4289.5,4289.4,0.4278]
[1757294596900,0.1163,4289.8,4289.6,0.4278]
[1757294597205,0.433,4289.8,4289.7,1.61994773]
[1757294597398,0.5242,4289.8,4289.7,1.61994773]
[1757294597796,0.3167,4290.2,4289.8,0.1735]
[1757294598001,0.5242,4290.2,4290.1,0.4278]
[1757294600003,0.3167,4290.2,4290.1,1.61994773]
[1757294600599,0.5242,4290.2,4290.1,1.44644773]
[1757294600803,0.7354,4290.2,4290.1,1.44644773]
[1757294601101,0.7354,4290.2,4289.4,17.5]
[1757294601102,0.7354,4289.8,4289.4,17.5]
[1757294601304,0.86,4289.5,4289.4,1.23194773]
[1757294601696,0.5433,4289.5,4289.4,0.237]
[1757294601901,0.86,4289.5,4289.4,0.237]
[1757294603305,0.3167,4289.4,4289.3,3.2078]
[1757294603498,0.7354,4289.4,4289.3,3.4448]
[1757294603703,0.7354,4289.4,4289.3,3.6581]
[1757294604199,0.7354,4289.4,4289.3,3.4448]
[1757294605008,0.7354,4289.4,4289.1,1.01864773]
[1757294605207,0.7354,4289.4,4289.3,0.237]
[1757294605602,0.7354,4289.4,4289.3,0.4503]
[1757294605804,0.7354,4289.4,4289.3,0.6648]
[1757294606009,0.3167,4289.4,4289.3,0.8383]
[1757294606208,0.5242,4289.4,4289.3,0.8383]
[1757294606409,0.5242,4289.4,4289.3,0.6648]
[1757294606610,0.7354,4289.4,4289.3,0.6648]
[1757294607222,0.3167,4289.4,4289.3,0.8383]
[1757294607513,0.7354,4289.4,4289.3,0.6648]
[1757294608917,0.5242,4289.4,4289.3,0.6648]
[1757294609309,0.3167,4289.4,4289.3,0.8383]
[1757294609708,0.3167,4289.7,4289.4,0.1735]
[1757294609914,0.3167,4289.7,4289.6,4.82774773]
[1757294610106,0.1246,4290.0,4289.8,0.4278]
[1757294610318,0.6488,4290.0,4289.9,0.6648]
[1757294611125,0.86,4290.0,4289.9,0.6648]
[1757294611613,0.3167,4289.3,4289.2,2.67576289]
[1757294611918,0.3167,4289.3,4289.2,1.85694773]
[1757294612612,0.5242,4289.3,4289.2,1.85694773]
[1757294614114,0.3167,4289.3,4289.2,1.85694773]
[1757294614313,0.3167,4289.3,4289.2,0.8383]
[1757294615312,0.2982,4289.7,4289.3,0.1739]
[1757294615517,0.1246,4290.0,4289.6,0.5916]
[1757294615719,0.3203,4290.0,4289.9,0.4177]
[1757294615919,0.5166,4290.0,4289.9,0.4177]
[1757294616123,0.8148,4290.0,4289.9,0.4177]
[1757294618319,0.8148,4290.0,4289.7,0.237]
[1757294619022,0.6902,4289.8,4289.7,0.237]
[1757294619325,0.6902,4289.8,4289.7,0.4401]
[1757294620220,0.8092,4289.5,4289.4,17.5]
[1757294620426,0.8092,4289.5,4289.4,17.78732988]
[1757294620627,0.8092,4289.5,4289.4,18.02432988]
[1757294620926,0.8092,4289.5,4289.4,0.52432988]
[1757294621324,0.6129,4289.5,4289.4,0.94202988]
[1757294621627,0.4172,4289.5,4289.4,1.11592988]
[1757294622022,0.6129,4289.5,4289.4,1.11593199]
[1757294622526,0.6129,4289.5,4289.4,0.94203199]
[1757294624628,0.2982,4289.8,4289.5,0.1739]
[1757294624821,0.2982,4289.8,4289.7,0.5916]
[1757294625018,0.4939,4289.8,4289.7,1.11593199]
[1757294625824,0.4939,4289.8,4289.7,0.94203199]
[1757294627329,0.4939,4289.8,4289.7,1.11593199]
[1757294628625,0.4939,4289.8,4289.7,0.94203199]
[1757294630131,0.1163,4289.9,4289.8,0.5916]
[1757294630330,0.1163,4289.9,4289.8,0.87893199]
[1757294631029,0.1163,4289.9,4289.8,1.29853199]
[1757294632223,0.4244,4290.5,4289.8,1.29853199]
[1757294632224,0.6201,4290.5,4290.4,0.4177]
[1757294632420,0.3219,4291.0,4290.5,0.1739]
[1757294632625,0.3219,4291.0,4290.3,3.2078]
[1757294632626,0.6902,4290.9,4290.6,0.52433199]
[1757294632830,0.6902,4290.9,4290.7,0.28733199]
[1757294632831,0.6902,4290.8,4290.7,0.28733199]
[1757294634026,0.6902,4290.8,4290.6,0.0699]
[1757294634730,4.6902,4290.8,4290.6,0.0699]
[1757294635325,0.392,4290.4,4290.3,0.80704881]
[1757294635527,0.6902,4290.4,4290.3,1.04404881]
[1757294636031,0.6902,4290.4,4290.3,0.237]
[1757294636737,0.6902,4290.3,4290.2,1.04404881]
[1757294638435,0.6902,4290.3,4290.2,1.24714881]
[1757294638638,0.6902,4290.3,4290.2,1.46174881]
[1757294639342,0.6902,4290.3,4290.2,0.6547]
[1757294640142,0.2982,4290.3,4290.2,0.8985]
[1757294640344,0.4939,4290.3,4290.2,0.8985]
[1757294642051,0.4939,4290.3,4290.2,0.6547]
[1757294642251,0.6902,4290.3,4290.2,0.6547]
[1757294643552,0.6902,4289.6,4289.5,19.79658114]
[1757294643745,0.6902,4289.6,4289.5,1.24714881]
[1757294644648,0.6902,4289.6,4289.5,1.46174881]
[1757294645955,0.2982,4289.6,4289.5,1.70514881]
[1757294647755,0.322,4289.8,4289.7,0.4028]
[1757294647951,0.322,4290.4,4289.8,0.3063]
[1757294648156,0.5347,4290.4,4290.3,1.51614881]
[1757294648357,0.322,4290.4,4290.3,1.75314881]
[1757294648550,0.322,4290.5,4290.4,0.3063]
[1757294648751,0.5347,4290.5,4290.4,0.7091]
[1757294649651,0.322,4290.9,4290.5,0.3063]
[1757294649845,0.322,4290.9,4290.8,1.51614881]
[1757294650553,0.5347,4290.9,4290.8,1.51614881]
[1757294651051,3.5298,4291.2,4291.1,0.2025]
[1757294651250,3.5298,4291.2,4291.1,1.75314881]
[1757294651446,3.9488,4291.2,4291.1,1.44684881]
[1757294654759,0.741,4291.2,4291.1,1.44684881]
[1757294655757,0.741,4291.2,4291.1,0.4028]
[1757294655954,0.741,4291.2,4291.1,1.24654881]
[1757294656856,0.741,4291.2,4290.5,0.3063]
[1757294657052,0.741,4291.2,4291.1,0.80704881]
[1757294657254,0.741,4291.2,4291.1,1.04404881]
[1757294657455,0.741,4291.2,4291.1,1.44684881]
[1757294657959,0.5347,4291.2,4291.1,1.75314881]
[1757294658559,0.741,4291.2,4291.1,1.44684881]
[1757294660455,0.741,4291.2,4291.1,1.00954881]
[1757294660656,0.741,4291.2,4291.1,1.04404881]
[1757294662260,0.741,4291.2,4291.1,0.80704881]
[1757294662564,0.741,4291.2,4291.1,1.04404881]
[1757294663260,0.741,4291.2,4291.1,1.24654881]
[1757294664469,0.741,4291.2,4291.1,1.04404881]
[1757294666271,0.741,4291.2,4291.1,1.24654881]
[1757294669567,0.741,4291.2,4291.1,1.04404881]
[1757294670460,0.1245,4291.0,4290.8,0.80704881]
[1757294670667,0.741,4290.9,4290.8,0.80704881]
[1757294671274,0.741,4290.9,4290.8,1.24654881]
[1757294671572,0.741,4290.9,4290.8,1.04404881]
[1757294671964,0.741,4290.9,4290.8,1.24654881]
[1757294672669,0.741,4290.9,4290.8,1.04404881]